bitfinex-derivatives/quotes_SOLF0:USTF0_20241024
["timestamp","ask_amount","ask_price","bid_price","bid_amount"]
[1729762070669,4.74,171.73,171.62,5.9253]
[1729762070875,4.74,171.73,171.69,2.9146]
[1729762071368,4.74,171.73,171.7,2.9144]
[1729762071577,4.74,171.74,171.63,11.18778327]
[1729762072074,4.74,171.74,171.72,2.914]
[1729762074574,4.74,171.74,171.63,11.18778327]
[1729762075681,4.74,171.74,171.72,2.914]
[1729762076178,4.74,171.74,171.71,2.9143]
[1729762077471,4.74,171.74,171.62,5.9253]
[1729762077472,11.18778327,171.73,171.62,5.9253]
[1729762077873,11.18778327,171.73,171.69,2.9145]
[1729762078481,11.18778327,171.73,171.62,5.9253]
[1729762078680,11.18778327,171.73,171.7,2.9144]
[1729762079780,4.74,171.74,171.71,2.9142]
[1729762080984,12.37108327,171.76,171.63,11.18778327]
[1729762081185,4.74,171.74,171.72,2.9141]
[1729762083586,4.74,171.74,171.71,2.9143]
[1729762084283,4.74,171.74,171.67,2.915]
[1729762084480,4.74,171.74,171.63,11.18778327]
[1729762084690,4.74,171.74,171.64,4.72]
[1729762084979,11.18778327,171.68,171.54,5.8344]
[1729762085186,4.72,171.67,171.55,1.2575]
[1729762085380,7.61140726,171.67,171.62,2.9158]
[1729762086087,7.61140726,171.67,171.55,5.9775]
[1729762086383,7.61140726,171.67,171.63,2.9156]
[1729762087179,7.61140726,171.67,171.56,4.72]
[1729762088790,7.61140726,171.67,171.64,2.9154]
[1729762090681,7.61140726,171.67,171.57,11.18778327]
[1729762091789,1.1833,171.76,171.67,2.9149]
[1729762091790,11.18778327,171.71,171.67,2.9149]
[1729762091988,11.18778327,171.71,171.59,11.18778327]
[1729762091989,4.72,171.7,171.59,11.18778327]
[1729762092286,2.96315179,171.69,171.67,2.9148]
[1729762092482,4.72,171.7,171.6,4.72]
[1729762092483,4.72,171.7,171.62,11.18778327]
[1729762092688,4.72,171.7,171.63,3.79]
[1729762092884,11.18778327,171.73,171.63,3.79]
[1729762093183,4.72,171.72,171.63,3.79]
[1729762094095,4.72,171.72,171.7,2.9144]
[1729762098185,11.18778327,171.71,171.68,2.9147]
[1729762098383,11.18778327,171.71,171.6,14.93608327]
[1729762098586,4.72,171.72,171.6,14.93608327]
[1729762099890,4.72,171.72,171.7,2.9144]
[1729762100795,4.72,171.72,171.6,14.93608327]
[1729762101193,4.72,171.72,171.63,11.18778327]
[1729762101495,1.1833,171.76,171.63,15.90778327]
[1729762101496,11.18778327,171.75,171.63,15.90778327]
[1729762101790,11.18778327,171.75,171.74,2.9138]
[1729762101996,11.18778327,171.75,171.65,11.18778327]
[1729762101997,4.72,171.75,171.65,11.18778327]
[1729762102387,4.72,171.75,171.74,2.9138]
[1729762103095,4.72,171.75,171.61,5.832]
[1729762103295,4.72,171.75,171.62,15.90778327]
[1729762103296,11.18778327,171.73,171.62,15.90778327]
[1729762103690,11.18778327,171.73,171.71,2.9142]
[1729762104392,11.18778327,171.73,171.72,2.9141]
[1729762104900,11.18778327,171.73,171.68,2.9147]
[1729762105099,11.18778327,171.71,171.62,4.72]
[1729762105397,15.90778327,171.71,171.67,2.9149]
[1729762106398,15.90778327,171.71,171.68,2.9148]
[1729762107994,11.18778327,171.69,171.59,4.72]
[1729762108298,2.95167829,171.68,171.59,4.72]
[1729762108802,2.95167829,171.68,171.66,2.9151]
[1729762110496,4.72,171.7,171.67,2.9148]
[1729762110693,4.72,171.71,171.67,2.9148]
[1729762111588,4.72,171.71,171.59,15.90778327]
[1729762112602,4.72,171.71,171.68,2.9147]
[1729762112901,4.72,171.71,171.59,15.90778327]
[1729762113497,4.72,171.71,171.63,2.9156]
[1729762113697,4.72,171.71,171.59,15.90778327]
[1729762114104,4.72,171.71,171.68,2.9147]
[1729762115901,4.72,171.71,171.69,2.9146]
[1729762116092,12.38258327,171.74,171.61,15.90778327]
[1729762116298,4.72,171.73,171.64,11.18778327]
[1729762116596,4.72,171.73,171.61,4.72]
[1729762116597,4.72,171.74,171.66,11.18778327]
[1729762116802,4.72,171.74,171.67,2.444]
[1729762117004,4.72,171.74,171.73,2.914]
[1729762118599,4.72,171.74,171.65,4.72]
[1729762119407,4.72,171.74,171.67,2.9149]
[1729762119594,4.72,171.74,171.65,4.72]
[1729762120000,4.72,171.74,171.72,2.9141]
[1729762120801,4.72,171.74,171.72,2.914]
[1729762122199,11.18778327,171.73,171.62,2.468]
[1729762122405,11.18778327,171.73,171.63,4.72]
[1729762122902,11.18778327,171.73,171.69,2.9145]
[1729762123304,11.18778327,171.73,171.7,2.9144]
[1729762129707,11.18778327,171.76,171.73,2.914]
[1729762129908,4.72,171.75,171.73,2.914]
[1729762130311,4.72,171.75,171.73,2.9139]
[1729762131812,2.498,171.77,171.75,2.9136]
[1729762132014,4.72,171.76,171.75,2.9136]
[1729762132407,4.72,171.76,171.74,2.9138]
[1729762134711,14.1272142,171.78,171.67,6.0024]
[1729762134922,2.93943093,171.78,171.77,2.9133]
[1729762135121,2.93943093,171.78,171.68,17.01728327]
[1729762135122,4.72,171.8,171.71,11.18778327]
[1729762135414,4.72,171.8,171.71,15.90778327]
[1729762135812,4.72,171.8,171.79,2.9129]
[1729762136015,4.72,171.81,171.71,15.90778327]
[1729762137218,11.18778327,171.84,171.73,11.18778327]
[1729762137421,4.72,171.82,171.74,1.1816]
[1729762137613,4.72,171.82,171.76,2.9134]
[1729762137820,4.72,171.82,171.74,1.1816]
[1729762138323,4.72,171.82,171.8,2.9127]
[1729762141217,4.72,171.82,171.69,18.28968327]
[1729762141218,11.18778327,171.81,171.69,18.28968327]
[1729762141713,2.9128,171.8,171.73,2.9139]
[1729762141915,2.9128,171.8,171.7,1.204]
[1729762142315,14.10048327,171.81,171.77,2.9131]
[1729762143523,11.18778327,171.81,171.7,1.204]
[1729762143720,11.18778327,171.81,171.78,2.913]
[1729762146222,14.10038327,171.81,171.78,2.913]
[1729762148816,11.18778327,171.81,171.69,2.3819]
[1729762149021,11.18778327,171.81,171.63,2.4543]
[1729762149022,11.18778327,171.75,171.63,2.4543]
[1729762149216,18.75181261,171.75,171.63,3.691]
[1729762149418,18.75181261,171.75,171.72,2.914]
[1729762153321,18.75181261,171.75,171.63,3.691]
[1729762153522,21.66551261,171.75,171.63,3.691]
[1729762154425,21.66551261,171.75,171.72,2.9141]
[1729762154828,18.75181261,171.75,171.72,2.9141]
[1729762155029,7.56402934,171.75,171.72,2.9141]
[1729762155218,11.18778327,171.74,171.72,2.9141]
[1729762155421,14.10158327,171.74,171.64,4.72]
[1729762156023,11.18778327,171.74,171.64,4.72]
[1729762156228,11.18778327,171.74,171.71,2.9142]
[1729762157432,10.47762934,171.75,171.71,2.9142]
[1729762157626,11.18778327,171.72,171.71,2.9142]
[1729762160327,18.75181261,171.75,171.73,2.9139]
[1729762160522,18.75181261,171.75,171.64,4.72]
[1729762161335,21.66551261,171.75,171.72,2.9141]
[1729762164539,7.16299192,171.73,171.72,2.9141]
[1729762169943,11.88299192,171.73,171.72,2.9141]
[1729762175846,11.88299192,171.73,171.71,2.9141]
[1729762177735,11.88299192,171.73,171.64,4.72]
[1729762177949,11.88299192,171.73,171.63,10.85399192]
[1729762177950,7.16299192,171.69,171.63,10.85399192]
[1729762178544,7.16299192,171.69,171.68,2.9148]
[1729762180046,7.16299192,171.69,171.63,8.39969192]
[1729762180348,7.16299192,171.67,171.6,7.16299192]
[1729762180537,2.93343114,171.66,171.6,7.16299192]
[1729762180944,7.16299192,171.67,171.66,2.9152]
[1729762183744,7.16299192,171.68,171.61,7.16299192]
[1729762184552,7.16299192,171.68,171.67,2.9149]
[1729762184744,4.72,171.69,171.67,2.9149]
[1729762184942,4.72,171.69,171.63,7.16299192]
[1729762185146,11.88299192,171.69,171.63,7.16299192]
[1729762185445,11.88299192,171.69,171.68,2.9148]
[1729762187246,7.16299192,171.71,171.7,2.9144]
[1729762187452,11.88299192,171.71,171.7,2.9144]
[1729762189355,11.88299192,171.72,171.71,2.9143]
[1729762189547,7.16299192,171.72,171.71,2.9143]
[1729762189754,7.67920542,171.73,171.69,7.16299192]
[1729762189964,4.72,171.73,171.72,2.9141]
[1729762190457,7.57804846,171.73,171.72,2.9141]
[1729762190754,14.74104038,171.73,171.72,2.9141]
[1729762190943,10.02104038,171.73,171.72,2.9141]
[1729762202254,10.02104038,171.73,171.71,2.9143]
[1729762202651,7.16299192,171.73,171.71,2.9143]
[1729762203655,2.87562422,171.74,171.71,2.9143]
[1729762204857,7.16299192,171.75,171.71,2.9143]
[1729762205059,10.10768708,171.75,171.71,2.9143]
[1729762207865,2.94469516,171.75,171.69,7.16299192]
[1729762208060,2.415,171.85,171.75,2.9136]
[1729762208061,7.16299192,171.79,171.75,2.9136]
[1729762208370,7.16299192,171.78,171.73,7.16299192]
[1729762208669,7.16299192,171.74,171.66,2.536]
[1729762208865,7.16299192,171.72,171.66,2.536]
[1729762209368,7.16299192,171.72,171.69,2.9145]
[1729762209562,7.16299192,171.7,171.66,2.536]
[1729762209759,7.16299192,171.7,171.65,1.229]
[1729762209958,7.16299192,171.7,171.68,2.9148]
[1729762211260,7.16299192,171.7,171.65,1.229]
[1729762211461,7.16299192,171.7,171.67,2.915]
[1729762211660,7.16299192,171.7,171.65,1.229]
[1729762213368,7.16299192,171.7,171.68,2.9148]
[1729762215568,7.16299192,171.7,171.69,2.9147]
[1729762215763,7.16299192,171.72,171.65,8.39199192]
[1729762215968,2.4669,171.77,171.65,8.39199192]
[1729762215969,4.7,171.73,171.68,7.16299192]
[1729762216169,7.16299192,171.74,171.68,7.16299192]
[1729762216469,10.03499471,171.74,171.68,7.16299192]
[1729762216867,10.03499471,171.74,171.71,2.9143]
[1729762218265,7.16299192,171.72,171.71,2.9143]
[1729762222871,4.7,171.74,171.68,7.16299192]
[1729762223075,4.7,171.74,171.73,2.914]
[1729762224068,2.93321005,171.75,171.73,2.914]
[1729762224868,11.86299192,171.76,171.73,2.914]
[1729762225468,14.77084281,171.76,171.73,2.914]
[1729762225973,2.4669,171.77,171.75,2.9135]
[1729762226175,4.7,171.76,171.72,7.16299192]
[1729762226567,7.55668072,171.76,171.72,7.16299192]
[1729762227275,11.86299192,171.79,171.72,7.16299192]
[1729762227473,11.86299192,171.79,171.73,7.16299192]
[1729762228069,7.16299192,171.79,171.76,2.9133]
[1729762228261,7.16299192,171.79,171.73,7.16299192]
[1729762228677,7.16299192,171.79,171.77,2.9132]
[1729762231478,4.7,171.8,171.73,7.16299192]
[1729762231666,11.86299192,171.8,171.73,7.16299192]
[1729762232466,7.16299192,171.8,171.73,7.16299192]
[1729762232766,7.16299192,171.8,171.77,2.9132]
[1729762233170,10.07579192,171.8,171.77,2.9132]
[1729762237980,7.6125,171.82,171.79,2.913]
[1729762238179,4.7,171.82,171.71,111.65670364]
[1729762238383,7.16299192,171.8,171.71,111.65670364]
[1729762238580,7.16299192,171.8,171.78,2.9131]
[1729762238786,11.86299192,171.82,171.75,7.16299192]
[1729762239081,11.86299192,171.82,171.77,7.16299192]
[1729762239680,14.77549192,171.82,171.79,2.9128]
[1729762241284,4.7,171.82,171.77,7.16299192]
[1729762241678,4.7,171.82,171.8,2.9126]
[1729762241981,4.7,171.82,171.77,7.16299192]
[1729762242483,4.7,171.82,171.81,2.9126]
[1729762242683,11.86299192,171.84,171.81,2.9126]
[1729762242878,2.4836,171.86,171.79,7.16299192]
[1729762243275,7.59319017,171.87,171.8,7.16299192]
[1729762243476,2.9119,171.86,171.8,7.16299192]
[1729762243684,2.9119,171.86,171.83,2.9122]
[1729762244186,17.7486025,171.87,171.8,7.16299192]
[1729762244377,17.7486025,171.87,171.84,2.9121]
[1729762244876,2.9112,171.9,171.82,7.16299192]
[1729762245087,7.16299192,171.89,171.83,7.16299192]
[1729762245579,10.07439192,171.89,171.86,2.9117]
[1729762246387,2.9114,171.89,171.86,2.9117]
[1729762246575,10.07439192,171.89,171.86,2.9117]
[1729762247496,10.07439192,171.89,171.85,2.9119]
[1729762247789,7.16299192,171.87,171.85,2.9119]
[1729762248894,7.16299192,171.87,171.86,2.9118]
[1729762249191,10.07439192,171.89,171.86,2.9118]
[1729762249585,7.6111,171.9,171.84,2.9121]
[1729762249891,14.77409192,171.9,171.83,7.16299192]
[1729762250588,14.77409192,171.9,171.87,2.9115]
[1729762252093,11.86299192,171.9,171.87,2.9115]
[1729762252289,11.86299192,171.9,171.85,7.16299192]
[1729762252594,4.7,171.9,171.85,7.16299192]
[1729762253386,4.7,171.9,171.8,1.216]
[1729762253594,4.7,171.9,171.88,2.9113]
[1729762253782,4.7,171.9,171.8,1.216]
[1729762253984,7.16299192,171.89,171.86,2.9117]
[1729762254183,7.16299192,171.89,171.84,7.16299192]
[1729762254887,7.16299192,171.89,171.87,2.9116]
[1729762255396,2.9112,171.9,171.87,2.9116]
[1729762258892,11.86299192,171.91,171.87,2.9116]
[1729762259093,14.77399192,171.91,171.87,2.9116]
[1729762259389,17.70109607,171.91,171.87,2.9116]
[1729762259584,4.7,171.91,171.86,7.16299192]
[1729762259790,2.86945304,171.93,171.91,2.9109]
[1729762259991,14.77349192,171.94,171.91,2.9109]
[1729762260193,12.94905947,171.94,171.91,2.9109]
[1729762260393,5.78606755,171.94,171.91,2.9109]
[1729762260594,7.6103,171.95,171.91,2.9109]
[1729762260794,17.66225316,171.95,171.91,2.9109]
[1729762262590,12.96225316,171.95,171.91,2.9109]
[1729762262801,12.96225316,171.95,171.9,7.16299192]
[1729762262999,12.96225316,171.95,171.89,7.16299192]
[1729762263589,12.96225316,171.95,171.91,2.9108]
[1729762264496,12.96225316,171.95,171.84,2.4804]
[1729762264497,7.16299192,171.92,171.8,1.216]
[1729762264703,196.09834894,171.98,171.8,1.216]
[1729762264704,7.16299192,171.85,171.8,1.216]
[1729762264999,7.16299192,171.83,171.8,2.9128]
[1729762266092,7.16299192,171.83,171.76,7.16299192]
[1729762266289,7.16299192,171.83,171.81,2.9126]
[1729762268407,11.86299192,171.82,171.72,13.15369192]
[1729762268703,7.16299192,171.78,171.72,8.45369192]
[1729762269096,7.16299192,171.78,171.76,2.9134]
[1729762270504,5.79080441,171.8,171.76,2.9134]
[1729762270699,7.16299192,171.79,171.76,2.9134]
[1729762271704,10.07609192,171.78,171.74,2.9137]
[1729762272202,10.07609192,171.78,171.72,1.2907]
[1729762272706,7.16299192,171.78,171.75,2.9136]
[1729762273200,10.042732,171.79,171.72,8.45369192]
[1729762273398,7.16299192,171.83,171.77,7.16299192]
[1729762273600,4.7,171.83,171.79,7.16299192]
[1729762273801,4.7,171.83,171.82,2.9124]
[1729762274003,2.85468366,171.84,171.82,2.9124]
[1729762274205,13.09169192,171.86,171.79,7.16299192]
[1729762274401,10.07509192,171.84,171.8,2.9127]
[1729762275095,10.07509192,171.84,171.78,7.16299192]
[1729762275096,7.16299192,171.84,171.78,7.16299192]
[1729762275305,2.9138541,171.85,171.79,7.16299192]
[1729762275911,5.8257541,171.85,171.81,2.9125]
[1729762276401,7.16299192,171.83,171.72,1.2907]
[1729762276603,7.16299192,171.83,171.78,2.913]
[1729762277001,7.16299192,171.79,171.63,5.8313]
[1729762277202,4.1991541,171.85,171.64,6.99291764]
[1729762277203,7.16299192,171.74,171.64,6.99291764]
[1729762277398,7.16299192,171.74,171.68,7.16299192]
[1729762278112,7.16299192,171.72,171.64,5.9222]
[1729762278409,11.19252648,171.75,171.65,1.07081505]
[1729762278600,2.9139,171.74,171.7,2.9144]
[1729762280209,2.9144,171.71,171.67,2.9149]
[1729762280411,4.7,171.72,171.64,1.2222]
[1729762280605,4.7,171.72,171.7,2.9144]
[1729762281206,4.7,171.72,171.65,11.19252648]
[1729762282015,4.7,171.72,171.69,2.9145]
[1729762282313,4.7,171.72,171.65,11.19252648]
[1729762282613,4.7,171.72,171.64,1.2222]
[1729762283314,4.7,171.72,171.7,2.9145]
[1729762283809,4.7,171.72,171.64,1.2222]
[1729762284812,2.9145,171.7,171.66,2.915]
[1729762285411,11.19252648,171.71,171.59,4.7]
[1729762285610,11.19252648,171.71,171.58,17.16362648]
[1729762285911,2.9149,171.68,171.64,2.9154]
[1729762286114,7.6149,171.68,171.58,17.16362648]
[1729762286812,4.7,171.68,171.58,17.16362648]
[1729762287209,7.615,171.68,171.64,2.9155]
[1729762287922,4.7,171.68,171.66,2.915]
[1729762288117,11.19252648,171.73,171.6,11.19252648]
[1729762288313,4.7,171.72,171.62,11.19252648]
[1729762288513,2.9143,171.71,171.67,2.9149]
[1729762289407,2.9143,171.71,171.62,11.19252648]
[1729762289408,11.19252648,171.68,171.53,3.5977]
[1729762289613,11.19252648,171.65,171.54,1.07150677]
[1729762289809,4.7,171.64,171.53,14.79022648]
[1729762290514,2.9158,171.63,171.53,14.79022648]
[1729762290712,4.7,171.64,171.53,14.79022648]
[1729762290910,4.7,171.64,171.55,11.19252648]
[1729762291118,1.1927,171.66,171.55,11.19252648]
[1729762291424,4.7,171.65,171.63,2.9157]
[1729762291716,4.7,171.68,171.6,11.19252648]
[1729762292813,2.9147,171.69,171.62,11.19252648]
[1729762292814,4.7,171.69,171.62,11.19252648]
[1729762293217,4.7,171.69,171.66,2.9151]
[1729762293819,4.7,171.69,171.62,11.19252648]
[1729762294009,4.68,171.71,171.68,2.9148]
[1729762294714,2.9142,171.72,171.69,2.9146]
[1729762294715,7.5942,171.72,171.69,2.9146]
[1729762295220,2.9144,171.71,171.67,2.9148]
[1729762296216,2.9144,171.71,171.62,4.68]
[1729762296217,4.68,171.72,171.62,4.68]
[1729762296523,4.68,171.73,171.62,4.68]
[1729762296821,4.68,171.74,171.62,4.68]
[1729762297529,4.68,171.74,171.61,19.12876886]
[1729762297530,4.68,171.74,171.63,4.68]
[1729762298321,7.5939,171.74,171.7,2.9144]
[1729762299023,7.5939,171.74,171.68,2.9147]
[1729762299024,2.9142,171.72,171.68,2.9147]
[1729762300626,4.68,171.74,171.71,2.9143]
[1729762301122,4.68,171.74,171.73,2.914]
[1729762301322,4.68,171.75,171.63,22.58946886]
[1729762301728,4.68,171.75,171.73,2.9139]
[1729762301930,1.2287,171.78,171.63,22.58946886]
[1729762302231,4.68,171.77,171.74,2.9138]
[1729762302823,4.68,171.8,171.69,19.20646886]
[1729762303521,4.68,171.8,171.77,2.9132]
[1729762305331,7.5928,171.8,171.77,2.9132]
[1729762306329,2.9124,171.83,171.72,4.68]
[1729762307423,2.5497,171.86,171.72,22.58946886]
[1729762307829,2.5497,171.86,171.82,2.9123]
[1729762308030,5.4616,171.86,171.82,2.9123]
[1729762308426,62.92,171.89,171.77,4.68]
[1729762308632,7.5914,171.88,171.78,2.57]
[1729762308831,2.9114,171.88,171.78,3.8165]
[1729762309234,17.90946886,171.93,171.78,3.8165]
[1729762309235,17.90946886,171.93,171.78,21.72596886]
[1729762309435,4.68,171.92,171.87,2.9114]
[1729762310236,2.9113,171.89,171.86,2.9118]
[1729762310436,2.9113,171.89,171.78,21.72596886]
[1729762310644,4.68,171.88,171.78,8.4965]
[1729762310937,2.9119,171.86,171.82,2.9124]
[1729762312538,7.5916,171.88,171.78,8.4965]
[1729762313345,8.8022,171.91,171.87,2.9116]
[1729762314539,1.2651,171.96,171.82,4.68]
[1729762314741,2.9105,171.94,171.82,4.68]
[1729762314939,4.68,171.95,171.82,4.68]
[1729762315343,2.9106,171.93,171.89,2.9111]
[1729762315745,4.68,171.95,171.86,4.68]
[1729762315949,2.9106,171.94,171.86,4.68]
[1729762316441,4.68,171.95,171.86,4.68]
[1729762316644,4.68,171.95,171.89,2.9111]
[1729762316645,2.9106,171.93,171.89,2.9111]
[1729762317241,2.9106,171.93,171.86,4.68]
[1729762317242,2.9105,171.94,171.9,2.911]
[1729762317844,2.9105,171.94,171.86,4.68]
[1729762318040,2.9105,171.94,171.91,2.9109]
[1729762318338,2.9105,171.94,171.86,5.91]
[1729762318339,7.5902,171.96,171.86,5.91]
[1729762318749,4.68,171.96,171.93,2.9106]
[1729762319540,7.5901,171.96,171.92,2.9107]
[1729762320249,4.68,171.96,171.86,5.91]
[1729762320449,1.248,171.99,171.87,17.90946886]
[1729762320450,5.928,171.99,171.87,17.90946886]
[1729762320642,1.248,171.99,171.87,17.90946886]
[1729762320843,2.9095,172.0,171.96,2.9099]
[1729762321346,7.5892,172.02,171.97,2.9098]
[1729762321551,4.68,172.02,171.97,2.9098]
[1729762322748,2.9095,172.0,171.96,2.91]
[1729762324051,2.9102,171.96,171.92,2.9107]
[1729762324349,2.9102,171.96,171.88,4.68]
[1729762324350,4.68,171.98,171.88,4.68]
[1729762325148,2.9102,171.95,171.91,2.9108]
[1729762325343,2.9102,171.95,171.88,4.68]
[1729762325753,4.68,171.98,171.88,4.68]
[1729762326753,17.90946886,171.97,171.91,2.9109]
[1729762327061,2.91,171.97,171.93,2.9105]
[1729762327255,2.91,171.97,171.87,4.68]
[1729762327256,17.90946886,172.0,171.87,22.58946886]
[1729762327457,4.68,172.0,171.87,22.58946886]
[1729762327762,2.9096,171.99,171.95,2.9101]
[1729762329749,4.68,172.0,171.91,4.68]
[1729762329956,4.68,172.0,171.96,2.91]
[1729762330661,2.9101,171.96,171.93,2.9104]
[1729762330867,2.9101,171.96,171.88,4.68]
[1729762331063,2.9103,171.95,171.9,2.911]
[1729762331270,2.9103,171.95,171.87,4.68]
[1729762331568,2.9101,171.96,171.92,2.9106]
[1729762331767,7.5901,171.96,171.87,4.68]
[1729762331960,4.68,171.96,171.87,4.68]
[1729762332162,7.5901,171.96,171.87,4.68]
[1729762332961,7.5901,171.96,171.92,2.9106]
[1729762333859,7.5901,171.96,171.87,4.68]
[1729762334061,7.5901,171.96,171.93,2.9106]
[1729762334767,2.93818719,171.95,171.93,2.9106]
[1729762334966,7.5901,171.96,171.93,2.9106]
[1729762335375,4.68,171.96,171.87,4.68]
[1729762335560,4.68,171.96,171.94,2.9103]
[1729762335871,2.91,171.97,171.94,2.9103]
[1729762336166,2.91,171.97,171.87,4.68]
[1729762336167,2.91,171.97,171.93,2.9105]
[1729762336358,2.91,171.97,171.87,4.68]
[1729762337267,2.91,171.97,171.94,2.9104]
[1729762339164,4.68,171.99,171.89,11.18319514]
[1729762339368,2.9098,171.98,171.89,11.18319514]
[1729762339567,4.68,171.99,171.89,11.18319514]
[1729762341378,2.9099,171.97,171.94,2.9103]
[1729762342769,4.68,171.99,171.89,11.18319514]
[1729762342974,2.9106,171.94,171.9,2.9109]
[1729762343178,4.68,171.95,171.9,2.9109]
[1729762343371,4.68,171.95,171.86,1.23]
[1729762343670,7.5903,171.95,171.91,2.9108]
[1729762344066,4.68,171.95,171.86,12.41319514]
[1729762344270,4.68,171.95,171.9,2.911]
[1729762344271,2.9106,171.93,171.9,2.911]
[1729762344676,2.9111,171.9,171.87,2.9115]
[1729762345086,11.18319514,171.93,171.81,11.18319514]
[1729762345281,11.18319514,171.9,171.85,2.9118]
[1729762345573,2.4353,171.94,171.79,1.2582]
[1729762345574,11.18319514,171.87,171.79,1.2582]
[1729762345779,7.57449342,171.86,171.83,2.9122]
[1729762345977,7.57449342,171.86,171.79,1.2582]
[1729762346368,2.912,171.85,171.82,2.9124]
[1729762346572,2.912,171.85,171.79,1.2582]
[1729762348377,2.912,171.85,171.81,2.9126]
[1729762348882,11.18319514,171.85,171.79,2.913]
[1729762349277,11.18319514,171.85,171.75,4.68]
[1729762349476,2.9123,171.83,171.79,2.9129]
[1729762349974,2.9121,171.84,171.8,2.9128]
[1729762351878,4.68,171.85,171.76,11.18319514]
[1729762352478,10.46332898,171.85,171.76,11.18319514]
[1729762353081,2.912,171.85,171.81,2.9125]
[1729762353285,2.912,171.85,171.76,11.18319514]
[1729762353476,2.912,171.85,171.81,2.9126]
[1729762353672,2.9121,171.84,171.81,2.9126]
[1729762354182,20.07164217,171.86,171.74,11.18319514]
[1729762354378,11.18319514,171.83,171.73,1.2333]
[1729762354584,4.68,171.82,171.73,1.2333]
[1729762355378,4.68,171.82,171.78,2.913]
[1729762355379,7.5926,171.82,171.78,2.913]
[1729762355575,1.262,171.85,171.75,11.18319514]
[1729762355780,4.68,171.84,171.75,11.18319514]
[1729762355978,4.68,171.84,171.8,2.9126]
[1729762356880,4.68,171.84,171.75,11.18319514]
[1729762357081,2.9124,171.83,171.79,2.9129]
[1729762357480,7.5921,171.84,171.8,2.9126]
[1729762357782,7.5921,171.84,171.75,11.18319514]
[1729762357783,4.68,171.84,171.75,11.18319514]
[1729762357986,2.9127,171.81,171.75,11.18319514]
[1729762358682,4.68,171.84,171.75,11.18319514]
[1729762358882,2.9125,171.82,171.78,2.913]
[1729762359485,2.9126,171.81,171.78,2.913]
[1729762360093,2.9129,171.8,171.76,2.9134]
[1729762360592,2.9129,171.8,171.73,1.2333]
[1729762361083,2.9129,171.8,171.75,2.9136]
[1729762361282,2.9129,171.8,171.73,1.2333]
[1729762361679,2.9126,171.82,171.78,2.913]
[1729762361880,4.68,171.81,171.78,2.913]
[1729762363487,7.5927,171.81,171.78,2.913]
[1729762365678,1.262,171.85,171.78,2.913]
[1729762365883,7.5926,171.82,171.78,2.913]
[1729762366081,1.262,171.85,171.75,11.18319514]
[1729762366280,7.5922,171.84,171.75,11.18319514]
[1729762366490,7.5922,171.84,171.75,15.86319514]
[1729762366884,7.5922,171.84,171.8,2.9127]
[1729762367485,7.5922,171.84,171.81,2.9126]
[1729762369489,4.68,171.84,171.75,15.86319514]
[1729762370090,2.9123,171.83,171.75,15.86319514]
[1729762370293,2.9123,171.83,171.8,2.9127]
[1729762372882,4.68,171.84,171.8,2.9127]
[1729762373096,7.5922,171.84,171.8,2.9127]
[1729762374988,7.5922,171.84,171.75,11.18319514]
[1729762374989,7.5922,171.84,171.81,2.9125]
[1729762380995,4.68,171.84,171.81,2.9125]
[1729762382203,7.5922,171.84,171.81,2.9125]
[1729762383699,7.5721,171.84,171.81,2.9125]
[1729762383895,4.66,171.84,171.75,11.18319514]
[1729762384098,11.18319514,171.8,171.61,2.69260041]
[1729762384299,11.18319514,171.77,171.66,1.2555]
[1729762384499,15.84319514,171.77,171.66,1.2555]